fUSD/lending_fUSD_20240415
["ID","MTS","AMOUNT","RATE_DAILY","PERIOD"]
[322663829,1713196244617,-8408.33519975,0.000204,2]
[322663830,1713196244628,-1967.0,0.000204,2]
[322663831,1713196244637,-700.0,0.000204,7]
[322663832,1713196244646,-152.0512545,0.00020435,2]
[322663833,1713196244656,-176.35323577,0.00020466,2]
[322663834,1713196244665,-152.0512545,0.00020487,2]
[322663835,1713196244674,-8408.33519975,0.000205,2]
[322663836,1713196244684,-150.0,0.000205,2]
[322663837,1713196244693,-700.0,0.000205,7]
[322663838,1713196244703,-1581.52266026,0.000205,2]
[322663839,1713196244713,-4618.0,0.000205,2]
[322663840,1713196244723,-230.9149631,0.00020504,2]
[322663841,1713196244733,-1744.15544576,0.00020504,2]
[322663842,1713196244742,-3000.0,0.0002053,2]
[322663843,1713196244752,-1380.44500167,0.00020532,2]
[322663844,1713196244761,-152.0512545,0.00020538,2]
[322663845,1713196244770,-1000.0,0.0002054,2]
[322663846,1713196244780,-1581.52266024,0.00020575,2]
[322663847,1713196244789,-152.0512545,0.0002059,2]
[322663848,1713196244799,-1052.0,0.000206,2]
[322663849,1713196244810,-8408.33519975,0.000206,2]
[322663850,1713196244819,-700.0,0.000206,7]
[322663851,1713196244828,-152.0512545,0.00020642,2]
[322663852,1713196244838,-174.24710374,0.00020645,2]
[322663853,1713196244850,-1581.52266024,0.0002065,2]
[322663854,1713196244862,-164.60549445,0.00020686,2]
[322663855,1713196244875,-156.62,0.0002069,2]
[322663856,1713196244885,-152.0512545,0.00020693,2]
[322663857,1713196244895,-9617.396663,0.000207,2]
[322663858,1713196244906,-3441.67977,0.000207,2]
[322663859,1713196244916,-67275.34025597,0.000207,2]
[322663860,1713196244925,-8408.33519975,0.000207,2]
[322663861,1713196244935,-700.0,0.000207,7]
[322663862,1713196244945,-1581.52266024,0.00020725,2]
[322663863,1713196244954,-200.0,0.00020728,2]
[322663864,1713196244963,-1000.0,0.00020728,2]
[322663865,1713196244972,-152.0512545,0.00020745,2]
[322663866,1713196244981,-200.0,0.00020754,2]
[322663867,1713196244990,-5800.0,0.00020766,2]
[322663868,1713196244999,-5800.0,0.00020774,2]
[322663869,1713196245008,-5800.0,0.00020783,2]
[322663870,1713196245018,-5800.0,0.00020791,2]
[322663871,1713196245027,-18480.34229031,0.00020793,2]
[322663872,1713196245037,-186.9578757,0.00020795,2]
[322663873,1713196245047,-152.0512545,0.00020797,2]
[322663874,1713196245056,-200.0,0.00020797,2]
[322663875,1713196245066,-1000.0,0.00020797,2]
[322663876,1713196245075,-500.0,0.00020797,2]
[322663877,1713196245084,-500.0,0.00020797,2]
[322663878,1713196245095,-200.0,0.00020797,2]
[322663879,1713196245105,-5800.0,0.000208,2]
[322663880,1713196245114,-10000.0,0.000208,2]
[322663881,1713196245124,-230.9149631,0.000208,2]
[322663882,1713196245133,-4834.77266535,0.000208,2]
[322663883,1713196245143,-8408.33519975,0.000208,2]
[322663884,1713196245152,-296.72761363,0.000208,2]
[322663885,1713196245161,-526.69146477,0.000208,2]
[322663886,1713196245171,-1100.0,0.000208,7]
[322663891,1713196245474,-1581.52266024,0.000208,2]
[322663892,1713196245483,-558.52012467,0.000208,2]
[322663893,1713196245493,-1831.25916105,0.000208,2]
[322663894,1713196245502,-1489.43,0.00020814,2]
[322663895,1713196245512,-207.2405,0.00020822,2]
[322663896,1713196245521,-200.0,0.00020831,2]
[322663897,1713196245531,-1000.0,0.00020831,2]
[322663898,1713196245540,-2292.0,0.00020847,2]
[322663899,1713196245549,-1001.811,0.00020847,2]
[322663900,1713196245559,-1391.0,0.00020847,2]
[322663901,1713196245568,-461.0,0.00020847,2]
[322663902,1713196245578,-1228.0,0.00020847,2]
[322663903,1713196245588,-1253.0,0.00020847,2]
[322663904,1713196245602,-150.6,0.00020847,2]
[322663906,1713196245611,-541.0,0.00020847,2]
[322663907,1713196245622,-608.0,0.00020847,2]
[322663908,1713196245632,-436.0,0.00020847,2]
[322663909,1713196245641,-280.0,0.00020847,2]
[322663910,1713196245651,-2034.668,0.00020847,2]
[322663911,1713196245661,-806.0,0.00020847,2]
[322663912,1713196245671,-1140.0,0.00020847,2]
[322663913,1713196245681,-150.0,0.00020847,2]
[322663914,1713196245690,-1472.0,0.00020847,2]
[322663915,1713196245699,-3077.0,0.00020847,2]
[322663916,1713196245709,-399.0,0.00020847,2]
[322663917,1713196245718,-150.0,0.00020847,2]
[322663918,1713196245728,-2441.0,0.00020847,2]
[322663919,1713196245737,-1638.0,0.00020847,2]
[322663920,1713196245746,-443.0,0.00020847,2]
[322663921,1713196245756,-215.0,0.00020847,2]
[322663922,1713196245765,-355.0,0.00020847,2]
[322663923,1713196245775,-5885.0,0.00020847,2]
[322663924,1713196245784,-250.0,0.00020847,2]
[322663925,1713196245793,-1737.0,0.00020847,2]
[322663926,1713196245802,-5721.0,0.00020847,2]
[322663927,1713196245811,-37635.0,0.00020847,2]
[322663928,1713196245821,-160.94,0.00020847,2]
[322663929,1713196245830,-152.0,0.00020847,2]
[322663930,1713196245840,-247.715,0.00020847,2]
[322663931,1713196245856,-1054.0,0.00020847,2]
[322663932,1713196245870,-200.0,0.00020847,2]
[322663933,1713196245879,-152.099,0.00020847,2]
[322663934,1713196245889,-258.0,0.00020847,2]
[322663935,1713196245899,-152.0512545,0.00020848,2]
[322663936,1713196245908,-160.0,0.00020874,2]
[322663937,1713196245917,-156.62,0.00020876,2]
[322663938,1713196245926,-307.05710639,0.00020882,2]
[322663939,1713196245936,-320.38499994,0.00020882,2]
[322663940,1713196245946,-909.12963236,0.00020882,2]
[322663941,1713196245955,-276.52359136,0.00020882,2]
[322663942,1713196245965,-227.51184237,0.00020882,2]
[322663943,1713196245974,-182.296256,0.00020882,2]
[322663944,1713196245984,-156.89734001,0.00020882,2]
[322663945,1713196245993,-155.25867842,0.00020882,2]
[322663946,1713196246002,-334.4812264,0.00020882,2]
[322663947,1713196246012,-333.68785673,0.00020882,2]
[322663948,1713196246021,-276.60872332,0.00020882,2]
[322663949,1713196246031,-849.88495792,0.00020882,2]
[322663950,1713196246040,-298.15132486,0.00020882,2]
[322663951,1713196246049,-173.56473147,0.00020882,2]
[322663952,1713196246058,-1019.53330274,0.00020882,2]
[322663953,1713196246068,-1757.59634072,0.00020882,2]
[322663954,1713196246077,-155.2737892,0.00020882,2]
[322663955,1713196246087,-155.0,0.00020882,2]
[322663956,1713196246098,-2730.76467492,0.00020882,2]
[322663957,1713196246107,-711.00064509,0.00020882,2]
[322663958,1713196246116,-261.69742537,0.00020882,2]
[322663959,1713196246125,-155.0,0.00020882,2]
[322663960,1713196246135,-187.27028764,0.00020882,2]
[322663961,1713196246144,-201.84235747,0.00020882,2]
[322663962,1713196246153,-169.58454161,0.00020882,2]
[322663963,1713196246163,-166.40032483,0.00020882,2]
[322663964,1713196246172,-4161.79091837,0.00020882,2]
[322663965,1713196246181,-160.0,0.00020882,2]
[322663966,1713196246190,-2852.26310961,0.00020883,2]
[322663967,1713196246200,-9345.02296983,0.00020884,2]
[322663968,1713196246209,-704.26951139,0.00020884,2]
[322663969,1713196246218,-3788.17934575,0.00020884,2]
[322663970,1713196246227,-2316.12566505,0.00020884,2]
[322663971,1713196246237,-332.6275332,0.00020884,2]
[322663972,1713196246246,-333.19529501,0.00020884,2]
[322663973,1713196246255,-269.8797574,0.00020884,2]
[322663974,1713196246265,-2955.11173481,0.00020884,2]
[322663975,1713196246274,-770.82600876,0.00020884,2]
[322663976,1713196246284,-258.85894656,0.00020884,2]
[322663977,1713196246294,-164.07990913,0.00020884,2]
[322663978,1713196246303,-414.00362573,0.00020884,2]
[322663979,1713196246313,-2279.73182301,0.00020884,2]
[322663980,1713196246323,-1296.33667789,0.00020884,2]
[322663981,1713196246332,-156.62,0.00020885,2]
[322663982,1713196246341,-156.62,0.00020885,2]
[322663983,1713196246353,-10323.4559726,0.00020886,2]
[322663984,1713196246362,-3666.2044995,0.00020886,2]
[322663985,1713196246372,-75777.9352743,0.00020886,2]
[322663986,1713196246381,-19882.47084,0.00020886,2]
[322663987,1713196246390,-176.35323577,0.00020886,2]
[322663988,1713196246399,-8619.2222476,0.00020886,2]
[322663989,1713196246409,-1744.15544576,0.00020886,2]
[322663990,1713196246419,-33778.0,0.0002089,2]
[322663991,1713196246428,-160.0,0.00020891,2]
[322663992,1713196246438,-5836.6670907,0.00020894,2]
[322663993,1713196246447,-186.58813403,0.00020894,2]
[322663994,1713196246457,-253714.67671022,0.00020895,2]
[322663995,1713196246550,-2337.44633106,0.00020895,2]
[322663996,1713196247477,-302.09356369,0.00020895,2]
[322663997,1713196247520,-188582.8221329,0.00020895,2]
[322663998,1713196247530,-12971.4444536,0.00020895,2]
[322663999,1713196247560,-9135.91130349,0.00020895,2]
[322664000,1713196247570,-17681.85181672,0.00020895,2]
[322664001,1713196247579,-254.85889902,0.000209,2]
[322664002,1713196247589,-25931.77562318,0.000209,2]
[322664003,1713196247602,-270444.58697974,0.000209,3]
[322664004,1713196247613,-706.15126009,0.000209,3]
[322664005,1713196247644,-1586.07693307,0.000209,3]
[322664006,1713196247665,-528.07284323,0.000209,3]
[322664007,1713196247712,-1467.78920479,0.000209,3]
[322664008,1713196247813,-32350.0,0.000209,3]
[322664009,1713196247855,-902.66732636,0.000209,3]
[322664010,1713196247868,-1254.00000201,0.000209,3]
[322664011,1713196247879,-884.80134804,0.000209,3]
[322664012,1713196249498,-162.64562643,0.00016715,2]
[322664013,1713196249508,-308.04796422,0.00018417,2]
[322664014,1713196249517,-4523.79829502,0.00019939,2]
[322664015,1713196249532,-599.27979208,0.00019939,2]
[322664016,1713196249543,-2734.71085841,0.00019939,2]
[322664017,1713196249555,-909.18055416,0.00019939,2]
[322664018,1713196249570,-1233.03050033,0.00019939,2]
[322664019,1713196249579,-2622.91702689,0.0001998,2]
[322664020,1713196249588,-192.53344885,0.00020893,2]
[322664021,1713196249600,-15783.93631906,0.000209,3]
[322664022,1713196249611,-285.5184421,0.000209,3]
[322664023,1713196249647,-1259.05860468,0.000209,3]
[322664024,1713196249665,-8943.7287007,0.000208,3]
[322664025,1713196274503,1000.0,0.00028,30]
[322664026,1713196291355,1000.0,0.00028,30]
[322664028,1713196346091,1000.0,0.00028,30]
[322664029,1713196352447,706.30199573,0.00015,2]
[322664030,1713196356659,1000.0,0.00028,30]
[322664033,1713196467081,599.27979208,0.00017789,5]
[322664035,1713196798463,5379.3088,0.00028,30]
[322664036,1713196953502,-304.98221471,0.00016976,2]
[322664037,1713196953527,-155.0,0.00016976,2]
[322664038,1713196953552,-162.64562643,0.00016977,2]
[322664039,1713196953576,-1239.01,0.00017019,2]
[322664040,1713196953604,-162.64562643,0.0001724,2]
[322664041,1713196953627,-162.64562643,0.00017503,2]
[322664042,1713196953650,-155.0,0.0001816,2]
[322664043,1713196953673,-1277.01,0.00018161,2]
[322664044,1713196953696,-250.0,0.00018268,2]
[322664045,1713196953719,-27152.060906,0.00018315,4]
[322664046,1713196976148,240.0,0.00025559,120]
[322664047,1713196976471,240.0,0.00027883,120]
[322664048,1713196994748,-6565.67207454,0.00018315,4]
[322664049,1713196994772,-150.0,0.00018315,2]
[322664050,1713196994795,-3018.0942,0.00018316,2]
[322664051,1713196994818,-164.79009812,0.00018316,2]
[322664052,1713196994841,-4227.44,0.00018316,2]
[322664053,1713196994864,-210.4680237,0.00018416,2]
[322664054,1713196994890,-262.32441193,0.00018416,2]
[322664055,1713196994913,-248.48570102,0.00018416,2]
[322664056,1713196994938,-150.99,0.00018416,2]
[322664057,1713196994961,-4577.01,0.00018416,2]
[322664058,1713196994986,-499.99,0.00018416,2]
[322664059,1713196995009,-167.84258139,0.00018417,2]
[322664060,1713196995035,-197.37101034,0.00018417,2]
[322664061,1713196995060,-155.0,0.00018417,2]
[322664062,1713196995088,-386.28,0.00018417,2]
[322664063,1713196995113,-150.99,0.00018417,2]
[322664064,1713196995141,-153.29,0.00018443,2]
[322664065,1713196995164,-1911.72,0.00018485,2]
[322664066,1713196995190,-240.0,0.00018589,2]
[322664067,1713196995213,-2141.44,0.00018648,2]
[322664068,1713196995237,-1080.80189896,0.00018684,2]
[322664069,1713197081857,-155.0,0.00018682,2]
[322664070,1713197081879,-155.0,0.00018683,2]
[322664071,1713197081900,-33717.73298054,0.00018683,4]
[322664072,1713197081922,-500.0,0.00018684,2]
[322664073,1713197081946,-22819.19810104,0.00018684,2]
[322664074,1713197081968,-2151.38,0.00018752,2]
[322664075,1713197081994,-1028.48109177,0.00018896,2]
[322664076,1713197082017,-1000.0,0.00018989,2]
[322664077,1713197082039,-7925.45,0.00018989,2]
[322664078,1713197082061,-298.99850738,0.00019,2]
[322664079,1713197082084,-1550.0,0.00019,3]
[322664080,1713197082107,-233.63758702,0.00019,2]
[322664081,1713197094536,-209.7343,0.00019078,2]
[322664082,1713197096413,500.0,0.00019,2]
[322664083,1713197104594,-164.79009812,0.00019114,2]
[322664084,1713197115411,500.0,0.00019,2]
[322664085,1713197126403,-2090.59733413,0.00019152,2]
[322664111,1713197432113,-155.0,0.00017459,2]
[322664112,1713197432122,-144.96046,0.0001746,2]
[322664113,1713197432134,-1033.904,0.0001746,2]
[322664114,1713197432145,-474.84,0.0001746,2]
[322664155,1713197432593,-3199.09077128,0.0001746,2]
[322664215,1713197437822,-1943.6952,0.0001746,2]
[322664222,1713197437878,-12415.41770696,0.0001746,2]
[322664224,1713197437889,-163.30833191,0.00017462,2]
[322664226,1713197437899,-150.0,0.0001756,2]
[322664227,1713197437909,-24322.67243907,0.00017561,2]
[322664228,1713197437918,-1211.26,0.00017562,2]
[322664229,1713197437928,-33717.73298054,0.00018,2]
[322664230,1713197437937,-638.5,0.00018609,2]
[322664231,1713197437947,-163.30833189,0.00018628,2]
[322664232,1713197437962,-250.0,0.00018847,2]
[322664233,1713197437973,-500.0,0.00018871,2]
[322664234,1713197437984,-209.7343,0.00019078,2]
[322664235,1713197437994,-562.55266587,0.00019152,2]
[322664236,1713197438006,-499.99,0.00019152,2]
[322664237,1713197438017,-500.0,0.00019152,2]
[322664238,1713197438028,-542.0,0.00019178,2]
[322664239,1713197438039,-1000.0,0.00019179,2]
[322664263,1713197438416,-150.99,0.00019179,2]
[322664268,1713197438458,-138478.4436815,0.00019479,2]
[322664278,1713197438547,-3359.43023141,0.00019479,2]
[322664281,1713197438559,-6480.5,0.00019479,2]
[322664474,1713197441390,-2278.43964104,0.00019479,2]
[322664477,1713197441402,-952.18499999,0.00019479,2]
[322664479,1713197441413,-2928.42179387,0.00019479,2]
[322664481,1713197441424,-2017.46663316,0.00019479,2]
[322664484,1713197441436,-4335.14695356,0.00019479,2]
[322664486,1713197441447,-2055.942,0.00019479,2]
[322664488,1713197441461,-2301.5176785,0.00019479,2]
[322664490,1713197441471,-696.92,0.00019479,2]
[322664493,1713197441482,-3224.93362955,0.00019479,2]
[322664495,1713197441492,-376514.48991046,0.00019479,2]
[322664497,1713197441501,-2516.06,0.0001948,2]
[322664499,1713197441511,-165.79,0.0001948,2]
[322664501,1713197441520,-23900.0,0.0001948,2]
[322664503,1713197441529,-150.0,0.0001948,2]
[322664505,1713197441537,-153.29,0.00019626,2]
[322664507,1713197441546,-209.79686718,0.00019692,2]
[322664509,1713197441556,-39550.45773339,0.00019693,2]
[322664511,1713197441566,-1337.09261185,0.00019693,2]
[322664513,1713197441574,-874.30567563,0.00019726,2]
[322664515,1713197441583,-874.30567563,0.0001976,2]
[322664517,1713197441593,-1337.09261182,0.00019779,2]
[322664519,1713197441602,-563.6279,0.00019793,2]
[322664521,1713197441611,-1000.0,0.00019793,2]
[322664523,1713197441619,-6163.0008,0.00019793,2]
[322664525,1713197441629,-434.2702,0.00019793,2]
[322664527,1713197441638,-2500.0,0.00019793,2]
[322664529,1713197441646,-8308.1899,0.00019793,2]
[322664531,1713197441656,-1052.66463379,0.00019793,2]
[322664533,1713197441666,-163.30833189,0.00019793,2]
[322664535,1713197441675,-7500.0,0.00019794,2]
[322664537,1713197441684,-701.93325631,0.00019794,2]
[322664539,1713197441693,-222.54571022,0.00019794,2]
[322664541,1713197441704,-874.30567563,0.00019794,2]
[322664543,1713197441713,-544.4659,0.00019804,2]
[322664545,1713197441722,-39550.45773338,0.00019816,2]
[322664547,1713197441732,-1211.26,0.00019826,2]
[322664549,1713197441742,-1337.09261182,0.00019865,2]
[322664551,1713197441752,-295.73197132,0.00019891,2]
[322664553,1713197441761,-229.71078745,0.00019891,2]
[322664555,1713197441771,-159.68175898,0.00019892,2]
[322664557,1713197441781,-23317.44939789,0.00019892,2]
[322664559,1713197441790,-500.0,0.00019893,2]
[322664561,1713197441800,-500.0,0.00019893,2]
[322664563,1713197441809,-500.0,0.00019893,2]
[322664565,1713197441819,-371.79878161,0.00019893,2]
[322664567,1713197441828,-500.0,0.00019893,2]
[322664569,1713197441837,-500.0,0.00019893,2]
[322664571,1713197441847,-6503.1778,0.00019894,2]
[322664573,1713197441856,-192.5959,0.00019894,2]
[322664574,1713197441865,-307903.19934162,0.00019894,2]
[322664742,1713197443144,-387.68567418,0.00019894,2]
[322664745,1713197443156,-409187.3434842,0.00019894,2]
[322664747,1713197443171,-173.3873,0.00019894,2]
[322664749,1713197443180,-701.93325625,0.00019895,2]
[322664751,1713197443189,-152.0724091,0.000199,2]
[322664753,1713197443199,-1052.66463379,0.00019905,2]
[322664755,1713197443212,-10000.0,0.00019929,2]
[322664757,1713197443221,-39550.45773338,0.00019939,2]
[322664759,1713197443230,-1337.09261182,0.00019952,2]
[322664761,1713197443239,-78882.78073454,0.00019995,2]
[322664825,1713197444607,216.72,0.00025989,120]
[322664826,1713197444973,-216.72,0.00018901,2]
[322664827,1713197444983,-3234.8193,0.00019995,2]
[322664828,1713197445077,-647.44,0.00019995,2]
[322664829,1713197445138,-938.3787,0.00019152,2]
[322664830,1713197445148,-3543.94654272,0.00019995,2]
[322664831,1713197445160,-658.35,0.00019995,2]
[322664832,1713197445175,-5966.85418032,0.00019995,2]
[322664833,1713197445362,-1226.99999763,0.00019995,2]
[322664834,1713197445374,-1037.17902075,0.00019995,2]
[322664835,1713197445384,-1204.17105637,0.00019995,2]
[322664836,1713197445395,-25464.16548557,0.00019995,2]
[322664837,1713197445407,-38381.42106062,0.00019995,2]
[322664838,1713197445416,-701.93325625,0.00019995,2]
[322664839,1713197445426,-1222.61220461,0.0002,2]
[322664840,1713197445435,-859.05239127,0.0002,2]
[322664841,1713197445445,-6216.8220722,0.0002,2]
[322664842,1713197445454,-1764.94365251,0.0002,2]
[322664843,1713197445464,-441.75589804,0.0002,2]
[322664844,1713197445474,-1256.02470065,0.0002,2]
[322664845,1713197445483,-186.00550827,0.0002,2]
[322664846,1713197445492,-3064.07513129,0.0002,2]
[322664847,1713197445502,-641.0611939,0.0002,2]
[322664848,1713197445511,-1046.55154272,0.0002,2]
[322664849,1713197445521,-500.0,0.0002,2]
[322664850,1713197445530,-1052.66463379,0.00020017,2]
[322664851,1713197445539,-1337.09261182,0.00020038,2]
[322664852,1713197445549,-39550.45773338,0.00020062,2]
[322664853,1713197445558,-167.68,0.00020064,2]
[322664854,1713197445568,-701.93325625,0.00020096,2]
[322664856,1713197445577,-1337.09261182,0.00020124,2]
[322664857,1713197445587,-1052.66463379,0.00020129,2]
[322664859,1713197445597,-21348.92855654,0.00020185,2]
[322664860,1713197445630,-2261.32363047,0.00020185,2]
[322664926,1713197447609,-1000.0,0.00019726,2]
[322664927,1713197447618,-155.0,0.00019893,2]
[322664928,1713197447627,-10000.0,0.00019929,2]
[322664929,1713197447636,-15940.20554637,0.00020185,2]
[322664930,1713197447646,-701.93325625,0.00020196,2]
[322664931,1713197447655,-500.0,0.000202,2]
[322664932,1713197447665,-1337.09261182,0.0002021,2]
[322664933,1713197447674,-300.0,0.00020217,2]
[322664934,1713197447684,-1052.66463379,0.00020241,2]
[322664935,1713197447693,-1337.09261182,0.00020297,2]
[322664936,1713197447702,-701.93325625,0.00020297,2]
[322664937,1713197447714,-1000.0,0.000203,2]
[322664938,1713197447723,-39550.45773338,0.00020308,2]
[322664939,1713197447732,-1052.66463379,0.00020352,2]
[322664940,1713197447742,-1337.09261182,0.00020383,2]
[322664941,1713197447751,-701.93325625,0.00020397,2]
[322664942,1713197447760,-500.0,0.000204,2]
[322664943,1713197447770,-39550.45773338,0.00020431,2]
[322664944,1713197447779,-1052.66463379,0.00020464,2]
[322664945,1713197447788,-1337.09261182,0.00020469,2]
[322664946,1713197447798,-701.93325625,0.00020498,2]
[322664947,1713197447807,-4420.0,0.000205,2]
[322664948,1713197447817,-150.0,0.000205,2]
[322664949,1713197447826,-176.35323577,0.0002051,2]
[322664950,1713197447835,-521.03,0.00020548,2]
[322664951,1713197447844,-150.0,0.00020548,2]
[322664952,1713197447854,-39550.45773338,0.00020554,2]
[322664953,1713197447863,-1337.09261182,0.00020555,2]
[322664954,1713197447873,-1052.66463379,0.00020576,2]
[322664955,1713197447882,-21038.2966,0.00020598,2]
[322664956,1713197447891,-771.9089,0.00020598,2]
[322664957,1713197447900,-701.93325625,0.00020598,2]
[322664958,1713197447910,-500.0,0.000206,2]
[322664959,1713197447919,-1000.0,0.000206,2]
[322664960,1713197447929,-4450.6798,0.0002061,2]
[322664961,1713197447939,-4410.5196,0.0002061,2]
[322664962,1713197447949,-105937.2951,0.0002061,2]
[322664963,1713197447962,-2576.3217,0.0002061,2]
[322664964,1713197447971,-155385.2423,0.0002061,2]
[322664965,1713197447980,-2067.5626,0.0002061,2]
[322664966,1713197447989,-186.49,0.00020611,2]
[322664967,1713197447998,-1337.09261182,0.00020641,2]
[322664968,1713197448007,-39550.45773338,0.00020677,2]
[322664969,1713197448016,-1052.66463379,0.00020688,2]
[322664970,1713197448025,-164.60549445,0.00020691,2]
[322664971,1713197448035,-197.31854217,0.00020695,2]
[322664972,1713197448044,-23473.7979,0.00020699,2]
[322664973,1713197448055,-366.464,0.00020699,2]
[322664974,1713197448065,-2465.7075,0.00020699,2]
[322664975,1713197448074,-8966.3471,0.00020699,2]
[322664976,1713197448084,-701.93325625,0.00020699,2]
[322664977,1713197448094,-180.2409352,0.000207,2]
[322664978,1713197448104,-720.59258801,0.000207,2]
[322664979,1713197448122,-172.97858174,0.000207,3]
[322664980,1713197448137,-1000.0,0.0002071,2]
[322664981,1713197448152,-4317.19,0.0002071,2]
[322664982,1713197448167,-39998.6679,0.0002071,2]
[322664983,1713197448178,-500.0,0.0002071,2]
[322664984,1713197448192,-100000.0,0.0002071,2]
[322664985,1713197448211,-1337.09261182,0.00020728,2]
[322664986,1713197448225,-200.0,0.00020729,2]
[322664987,1713197448238,-200.0,0.00020764,2]
[322664988,1713197448252,-1000.0,0.00020764,2]
[322664989,1713197448264,-500.0,0.00020764,2]
[322664990,1713197448274,-200.0,0.00020764,2]
[322664991,1713197448286,-5721.0,0.00020795,2]
[322664992,1713197448300,-37635.0,0.00020795,2]
[322664993,1713197448312,-5885.0,0.00020795,2]
[322664994,1713197448324,-1737.0,0.00020795,2]
[322664995,1713197448337,-1054.0,0.00020795,2]
[322664996,1713197448350,-701.93325625,0.00020799,2]
[322664997,1713197448363,-1062.9968,0.000208,2]
[322664998,1713197448373,-9796.8551,0.000208,2]
[322664999,1713197448385,-208767.76000092,0.000208,2]
[322665000,1713197448435,-536.13858821,0.000208,2]
[322665001,1713197448585,-11252.72216542,0.000208,2]
[322665002,1713197448606,-554.09392663,0.000208,2]
[322665003,1713197448620,-322.51994525,0.000208,2]
[322665004,1713197448777,-15911.69331384,0.000208,2]
[322665005,1713197448821,-1237.95671988,0.000208,2]
[322665006,1713197449079,-6417.11533985,0.000208,2]
[322665007,1713197449091,-47635.36290499,0.000208,2]
[322665008,1713197449108,-67790.0000006,0.000208,2]
[322665009,1713197449122,-823.29,0.000208,2]
[322665010,1713197449200,-412.96280804,0.000208,2]
[322665011,1713197449318,-19796.11065348,0.000208,2]
[322665012,1713197449333,-500.0,0.000208,2]
[322665013,1713197449348,-585.22668101,0.000208,2]
[322665014,1713197449460,-473.45535732,0.000208,2]
[322665015,1713197960564,173.96,0.0002553,120]
[322665016,1713197961967,173.96,0.00027851,120]
[322665172,1713198609104,165.59,0.00026785,120]
[322665227,1713198632726,-155.0,0.00016692,2]
[322665229,1713198632735,-502.53953158,0.00016693,2]
[322665233,1713198632763,-400.0,0.00016693,2]
[322665235,1713198632774,-187.59046842,0.00016693,2]
[322665237,1713198632783,-165.79,0.00017853,2]
[322665239,1713198632793,-142.96616458,0.00017863,2]
[322665241,1713198632804,-730.35536255,0.00017863,2]
[322665244,1713198632815,-1030.48847287,0.00017863,2]
[322665246,1713198632825,-1250.81,0.00017893,2]
[322665247,1713198632834,-23900.0,0.00017943,2]
[322665249,1713198632844,-319.25,0.00017943,2]
[322665252,1713198632853,-200.0,0.00017997,2]
[322665253,1713198632862,-5635.45152711,0.00018,2]
[322665259,1713198632905,-4553.96691888,0.00018,2]
[322665261,1713198632916,-23528.31453455,0.00018,2]
[322665263,1713198632925,-480.61,0.00018552,2]
[322665265,1713198632935,-250.0,0.00018552,2]
[322665267,1713198632944,-150.99,0.00018557,2]
[322665269,1713198632954,-480.61,0.00018557,2]
[322665271,1713198632963,-480.61,0.00018562,2]
[322665273,1713198632972,-499.99,0.00018562,2]
[322665275,1713198632981,-480.61,0.00018567,2]
[322665277,1713198632990,-173.96,0.00018567,2]
[322665279,1713198633001,-334.45795601,0.00018572,2]
[322665282,1713198633013,-146.15204399,0.00018572,2]
[322665284,1713198633022,-480.61,0.00018577,2]
[322665286,1713198633032,-480.61,0.00018582,2]
[322665288,1713198633041,-480.61,0.00018586,2]
[322665290,1713198633051,-480.61,0.00018591,2]
[322665292,1713198633060,-480.61,0.00018596,2]
[322665294,1713198633070,-311.67887949,0.00018601,2]
[322665296,1713198633082,-168.93112051,0.00018601,2]
[322665298,1713198633091,-480.61,0.00018606,2]
[322665300,1713198633101,-480.61,0.00018611,2]
[322665302,1713198633110,-480.61,0.00018616,2]
[322665304,1713198633119,-225.9473879,0.00018621,2]
[322665307,1713198633139,-254.6626121,0.00018621,2]
[322665309,1713198633149,-128.51849012,0.00018625,2]
[322665311,1713198633160,-352.09150988,0.00018625,2]
[322665313,1713198633170,-480.61,0.0001863,2]